[Event "XX Sant Marti Open 2018"]
[Site "Sant Marti"]
[Date "2018.07.16"]
[Round "4"]
[White "Neelash Saha"]
[Black "Oliva Castaneda, Kevel"]
[Result "1/2-1/2"]
[ECO "A45"]
[WhiteElo "2319"]
[BlackElo "2491"]
[Annotator "ChessBase"]
[PlyCount "30"]
[EventDate "2018.07.13"]
[EventType "swiss"]
[EventCountry "ESP"]
[SourceTitle "playchess.com"]
[Source "ChessBase"]
[SourceQuality "1"]
[TimeControl "5400+30"]

1. d4 {[%emt 0:00:00]} Nf6 {[%emt 0:00:00]} 2. Bg5 {[%emt 0:00:00]} Ne4 {[%emt 0:01:13]} 3. Bf4 {[%emt 0:00:00]} d5 {[%emt 0:00:27]} 4. e3 {[%emt 0:00:00]} c5 {[%emt 0:00:35]} 5. Bd3 {[%emt 0:00:00]} Nf6 {[%emt 0:00:07]} 6. c3 {[%emt 0:00:04]} g6 {[%emt 0:01:53]} 7. Nd2 {[%emt 0:05:51]} Bg7 {[%emt 0:00:31]} 8. h3 {[%emt 0:00:06]} O-O {[%emt 0:00:21]} 9. Ngf3 {[%emt 0:00:13]} Nc6 {[%emt 0:00:53]} 10. O-O {[%emt 0:00:08]} Nd7 {[%emt 0:00:24]} 11. Bb5 {[%emt 0:02:01]} Qb6 {[%emt 0:02:35]} 12. Qa4 {[%emt 0:00:25]} a6 {[%emt 0:00:49]} 13. Bxc6 {[%emt 0:00:45]} bxc6 {[%emt 0:00:11]} 14. b4 {[%emt 0:00:39]} c4 {[%emt 0:03:37]} 15. e4 {[%emt 0:01:23]} Re8 {[%emt 0:06:41]} 1/2-1/2

[Event "XX Sant Marti Open 2018"]
[Site "Sant Marti"]
[Date "2018.07.16"]
[Round "4"]
[White "Cruz, Filemon"]
[Black "Cuartas, Jaime Alexander"]
[Result "0-1"]
[ECO "A06"]
[WhiteElo "2314"]
[BlackElo "2508"]
[Annotator "ChessBase"]
[PlyCount "105"]
[EventDate "2018.07.13"]
[EventType "swiss"]
[EventCountry "ESP"]
[SourceTitle "playchess.com"]
[Source "ChessBase"]
[SourceQuality "1"]
[TimeControl "5400+30"]

1. Nf3 {[%emt 0:00:00]} d5 {[%emt 0:00:00]} 2. c4 {[%emt 0:00:00]} c6 {[%emt 0:00:05]} 3. e3 {[%emt 0:00:23]} Nf6 {[%emt 0:00:26]} 4. d4 {[%emt 0:00:15]} Bg4 {[%emt 0:01:05]} 5. Qb3 {[%emt 0:00:14]} Qb6 {[%emt 0:00:12]} 6. Ne5 {[%emt 0:00:37]} e6 {[%emt 0:00:46]} 7. Nxg4 {[%emt 0:00:45]} Nxg4 {[%emt 0:00:05]} 8. Be2 {[%emt 0:00:18]} Nf6 {[%emt 0:00:06]} 9. Nc3 {[%emt 0:00:16]} Nbd7 {[%emt 0:01:48]} 10. Bd2 {[%emt 0:01:03]} Be7 {[%emt 0:00:26]} 11. Qc2 {[%emt 0:02:16]} O-O {[%emt 0:01:43]} 12. cxd5 {[%emt 0:00:25]} exd5 {[%emt 0:01:01]} 13. O-O {[%emt 0:00:55]} Rfe8 {[%emt 0:00:23]} 14. b4 {[%emt 0:05:51]} a6 {[%emt 0:00:33]} 15. Na4 {[%emt 0:00:20]} Qc7 {[%emt 0:00:14]} 16. Nc5 {[%emt 0:00:25]} Bd6 {[%emt 0:00:13]} 17. g3 {[%emt 0:01:52]} Ne4 {[%emt 0:00:11]} 18. Nxe4 {[%emt 0:01:41]} dxe4 {[%emt 0:00:13]} 19. a4 {[%emt 0:01:22]} Nf6 {[%emt 0:05:05]} 20. b5 {[%emt 0:02:05]} axb5 {[%emt 0:00:10]} 21. axb5 {[%emt 0:00:05]} c5 {[%emt 0:00:13]} 22. dxc5 {[%emt 0:01:36]} Qxc5 {[%emt 0:00:31]} 23. Qb3 {[%emt 0:08:22]} Qf5 {[%emt 0:03:26]} 24. Bc3 {[%emt 0:03:31]} Be5 {[%emt 0:07:26]} 25. Rfd1 {[%emt 0:07:26]} Rxa1 {[%emt 0:10:17]} 26. Rxa1 {[%emt 0:03:33]} h5 {[%emt 0:04:46]} 27. Bxe5 {[%emt 0:13:33]} Qxe5 {[%emt 0:04:08]} 28. Ra7 {[%emt 0:03:43]} Re7 {[%emt 0:00:11]} 29. b6 {[%emt 0:05:00]} Kh7 {[%emt 0:06:32]} 30. Qb4 {[%emt 0:03:58]} Rd7 {[%emt 0:02:26]} 31. Ra5 {[%emt 0:03:12]} Qd6 {[%emt 0:04:20]} 32. Qxd6 {[%emt 0:07:10]} Rxd6 {[%emt 0:00:05]} 33. Bxh5 {[%emt 0:00:08]} g6 {[%emt 0:00:04]} 34. Be2 {[%emt 0:00:12]} Rxb6 {[%emt 0:00:04]} 35. g4 {[%emt 0:01:05]} Rb2 {[%emt 0:07:14]} 36. Kf1 {[%emt 0:02:05]} Ne8 {[%emt 0:06:06]} 37. Rd5 {[%emt 0:00:42]} Rb6 {[%emt 0:00:43]} 38. Rd7 {[%emt 0:01:01]} Nd6 {[%emt 0:00:27]} 39. g5 {[%emt 0:01:21]} Kg7 {[%emt 0:00:17]} 40. Rd8 {[%emt 0:02:55]} Nf5 {[%emt 0:00:32]} 41. Bg4 {[%emt 0:01:04]} Nh4 {[%emt 0:01:12]} 42. Re8 {[%emt 0:01:06]} Nf3 {[%emt 0:00:56]} 43. h4 {[%emt 0:03:01]} Nh2+ {[%emt 0:03:08]} 44. Kg2 {[%emt 0:00:07]} Nxg4 {[%emt 0:00:05]} 45. Rxe4 {[%emt 0:00:07]} f5 {[%emt 0:00:15]} 46. Re7+ {[%emt 0:00:32]} Kf8 {[%emt 0:00:05]} 47. Rc7 {[%emt 0:00:25]} Rb2 {[%emt 0:00:19]} 48. Kg3 {[%emt 0:00:22]} Nxf2 {[%emt 0:00:26]} 49. h5 {[%emt 0:00:17]} Ne4+ {[%emt 0:01:00]} 50. Kf4 {[%emt 0:00:06]} Rf2+ {[%emt 0:00:12]} 51. Ke5 {[%emt 0:00:13]} gxh5 {[%emt 0:00:11]} 52. g6 {[%emt 0:00:22]} b5 {[%emt 0:00:42]} 53. Kd4 0-1

[Event "XX Sant Marti Open 2018"]
[Site "Sant Marti"]
[Date "2018.07.16"]
[Round "4"]
[White "Lacasta Palacio, Joaquim"]
[Black "Pena Gomez, Manuel"]
[Result "0-1"]
[ECO "A48"]
[WhiteElo "2105"]
[BlackElo "2475"]
[Annotator "ChessBase"]
[PlyCount "45"]
[EventDate "2018.07.13"]
[EventType "swiss"]
[EventCountry "ESP"]
[SourceTitle "playchess.com"]
[Source "ChessBase"]
[SourceQuality "1"]
[TimeControl "5400+30"]

1. Nf3 {[%emt 0:07:53]} Nf6 {[%emt 0:00:00]} 2. d4 {[%emt 0:00:33]} g6 {[%emt 0:00:00]} 3. Bf4 {[%emt 0:01:13]} Bg7 4. e3 {[%emt 0:00:18]} d6 {[%emt 0:00:24]} 5. Be2 {[%emt 0:00:24]} O-O {[%emt 0:04:28]} 6. c3 {[%emt 0:01:36]} Nc6 {[%emt 0:01:01]} 7. h3 {[%emt 0:01:02]} Nd7 {[%emt 0:01:19]} 8. Bh2 {[%emt 0:01:46]} e5 {[%emt 0:00:10]} 9. Nbd2 {[%emt 0:10:00]} a6 {[%emt 0:03:06]} 10. O-O {[%emt 0:01:38]} f5 {[%emt 0:01:39]} 11. b4 {[%emt 0:21:09]} Kh8 {[%emt 0:04:07]} 12. Qb3 {[%emt 0:03:52]} Qe7 {[%emt 0:00:54]} 13. d5 {[%emt 0:10:16]} Nd8 {[%emt 0:02:50]} 14. Rad1 {[%emt 0:01:03]} g5 {[%emt 0:02:44]} 15. Kh1 {[%emt 0:00:35]} Nf7 {[%emt 0:04:27]} 16. Nc4 {[%emt 0:13:21]} Nf6 {[%emt 0:00:51]} 17. Na5 {[%emt 0:01:19]} Rg8 {[%emt 0:05:49]} 18. c4 {[%emt 0:05:32]} Bf8 {[%emt 0:01:38]} 19. Ng1 {[%emt 0:02:20]} g4 {[%emt 0:03:40]} 20. Qb2 {[%emt 0:07:02]} Bg7 {[%emt 0:07:43]} 21. Qc1 {[%emt 0:00:28]} Bh6 {[%emt 0:03:08]} 22. c5 {[%emt 0:04:36]} Ne4 {[%emt 0:01:34]} 23. Bd3 0-1

[Event "XX Sant Marti Open 2018"]
[Site "Sant Marti"]
[Date "2018.07.17"]
[Round "5"]
[White "Iniyan, P."]
[Black "Neelash Saha"]
[Result "0-1"]
[ECO "D38"]
[WhiteElo "2451"]
[BlackElo "2319"]
[Annotator "RC"]
[PlyCount "128"]
[EventDate "2018.07.13"]
[EventType "swiss"]
[EventCountry "ESP"]
[SourceTitle "playchess.com"]
[Source "ChessBase"]
[SourceQuality "1"]
[TimeControl "5400+30"]

1. d4 {[%emt 0:00:21]} d5 {[%emt 0:00:00]} 2. c4 {[%emt 0:00:07]} e6 {[%emt 0:00:00]} 3. Nf3 {[%emt 0:00:32]} Nf6 {[%emt 0:00:00]} 4. Nc3 {[%emt 0:01:07]} Bb4 {[%emt 0:00:01]} 5. e3 {[%emt 0:00:30]} O-O {[%emt 0:01:13]} 6. Bd3 {[%emt 0:00:10]} dxc4 {[%emt 0:01:36]} 7. Bxc4 {[%emt 0:00:08]} a6 {[%emt 0:00:03]} 8. O-O {[%emt 0:09:48]} b5 {[%emt 0:02:20]} 9. Bd3 {[%emt 0:00:08]} Bb7 {[%emt 0:00:05]} 10. Qe2 {[%emt 0:07:16]} c5 {[%emt 0:03:45]} 11. Rd1 {[%emt 0:03:23]} Nbd7 {[%emt 0:05:28]} 12. a3 {[%emt 0:10:22]} Bxc3 {[%emt 0:02:37]} 13. bxc3 {[%emt 0:00:05]} c4 {[%emt 0:00:11]} 14. Bb1 {[%emt 0:00:45]} Ne4 {[%emt 0:01:29]} 15. Qc2 {[%emt 0:03:07]} Qa5 {[%emt 0:01:37]} 16. Bb2 {[%emt 0:03:00]} Nb6 {[%emt 0:01:17]} 17. Nd2 {[%emt 0:01:21]} f5 {[%emt 0:00:19]} 18. f3 {[%emt 0:11:48]} Nf6 {[%emt 0:02:24]} 19. a4 {[%emt 0:08:57]} Nxa4 {[%emt 0:01:27]} 20. Nxc4 {[%emt 0:00:05]} Qc7 {[%emt 0:00:28]} 21. Rxa4 {[%emt 0:00:04]} bxa4 {[%emt 0:00:18]} 22. Ne5 {[%emt 0:01:02]} Nd7 {[%emt 0:01:12]} 23. Nd3 {[%emt 0:00:52]} Bd5 {[%emt 0:09:48]} 24. Qxa4 {[%emt 0:00:18]} a5 {[%emt 0:00:32]} 25. Re1 {[%emt 0:08:18]} Rfb8 {[%emt 0:07:41]} 26. e4 {[%emt 0:00:40]} fxe4 {[%emt 0:07:28]} 27. fxe4 {[%emt 0:00:07]} Bc4 {[%emt 0:00:03]} 28. Qa1 {[%emt 0:00:32]} Rb7 {[%emt 0:01:49]} 29. Bc1 {[%emt 0:03:36]} Rab8 {[%emt 0:04:24]} 30. Bc2 {[%emt 0:03:50]} e5 {[%emt 0:02:17]} 31. Be3 {[%emt 0:01:03]} Bb3 {[%emt 0:03:59]} 32. Bb1 {[%emt 0:01:13]} a4 {[%emt 0:06:14]} 33. dxe5 {[%emt 0:03:15]} Qa5 {[%emt 0:02:41]} 34. Bd4 {[%emt 0:01:10]} a3 {[%emt 0:05:08]} 35. Ba2 {[%emt 0:00:08]} Bxa2 {[%emt 0:04:52]} 36. Qxa2+ {[%emt 0:00:06]} Kh8 37. e6 {[%emt 0:00:57]} Nf8 {[%emt 0:00:12]} 38. Ne5 {[%emt 0:04:56]} Qa6 {[%emt 0:06:39]} 39. Nf7+ {[%emt 0:03:17]} Kg8 {[%emt 0:00:21]} 40. Ng5 {[%emt 0:01:10]} Rb2 {[%emt 0:00:06]} 41. Qd5 {[%emt 0:01:14]} R2b5 {[%emt 0:00:09]} 42. Bc5 {[%emt 0:01:04]} Rxc5 {[%emt 0:09:08]} 43. Qxc5 {[%emt 0:00:06]} a2 {[%emt 0:00:03]} 44. e7 {[%emt 0:03:45]} Ne6 {[%emt 0:01:14]} 45. Qe5 {[%emt 0:00:53]} Qb6+ {[%emt 0:01:23]} 46. Kh1 {[%emt 0:01:11]} Nc7 {[%emt 0:01:28]} 47. Qf5 {[%emt 0:00:22]} Qg6 {[%emt 0:01:39]} 48. Qf4 {[%emt 0:03:12]} Rc8 {[%emt 0:03:13]} 49. Rf1 {[%emt 0:00:59]} Qf6 {[%emt 0:00:34]} 50. Qc1 {[%emt 0:00:24]} Rb8 {[%emt 0:01:07]} 51. Rd1 {[%emt 0:00:21]} Qxe7 {[%emt 0:00:44]} 52. Qd2 {[%emt 0:00:12]} Ra8 {[%emt 0:00:13]} 53. Ra1 {[%emt 0:00:08]} h6 {[%emt 0:00:42]} 54. Nf3 {[%emt 0:00:42]} Qxe4 {[%emt 0:00:10]} 55. Qb2 {[%emt 0:00:03]} Qa4 {[%emt 0:00:57]} 56. Nd4 {[%emt 0:00:52]} Qa3 {[%emt 0:01:49]} 57. Qxa3 {[%emt 0:01:53]} Rxa3 {[%emt 0:00:02]} 58. Kg1 {[%emt 0:00:24]} Nd5 {[%emt 0:00:26]} 59. Nc2 {[%emt 0:00:03]} Ra4 {[%emt 0:00:06]} 60. c4 {[%emt 0:00:43]} Nc3 {[%emt 0:00:10]} 61. Ne3 {[%emt 0:01:08]} Rb4 {[%emt 0:00:17]} 62. Rf1 {[%emt 0:00:06]} Rb2 {[%emt 0:00:30]} 63. c5 {[%emt 0:01:22]} Ne2+ {[%emt 0:00:25]} 64. Kf2 {[%emt 0:00:03]} Nc1+ {[%emt 0:00:04]} 0-1

[Event "XX Sant Marti Open 2018"]
[Site "Sant Marti"]
[Date "2018.07.17"]
[Round "5"]
[White "Fernandez Cardoso, Alexey"]
[Black "Serarols Mabras, Bernat"]
[Result "1/2-1/2"]
[ECO "B12"]
[WhiteElo "2439"]
[BlackElo "2269"]
[Annotator "ChessBase"]
[PlyCount "86"]
[EventDate "2018.07.13"]
[EventType "swiss"]
[EventCountry "ESP"]
[SourceTitle "playchess.com"]
[Source "ChessBase"]
[SourceQuality "1"]
[TimeControl "5400+30"]

1. e4 {[%emt 0:00:00]} c6 {[%emt 0:00:23]} 2. d4 {[%emt 0:00:00]} d5 {[%emt 0:00:44]} 3. e5 {[%emt 0:00:00]} Bf5 {[%emt 0:00:55]} 4. Nf3 {[%emt 0:00:00]} e6 {[%emt 0:00:53]} 5. Be2 {[%emt 0:00:00]} c5 {[%emt 0:00:44]} 6. O-O {[%emt 0:01:53]} Nc6 {[%emt 0:01:55]} 7. c3 {[%emt 0:00:08]} cxd4 {[%emt 0:01:57]} 8. cxd4 {[%emt 0:00:10]} Nge7 {[%emt 0:02:05]} 9. Nc3 {[%emt 0:03:24]} Nc8 {[%emt 0:03:41]} 10. Be3 {[%emt 0:02:48]} Be7 {[%emt 0:03:53]} 11. Ne1 {[%emt 0:01:10]} Bg6 {[%emt 0:07:34]} 12. f4 {[%emt 0:00:40]} h5 {[%emt 0:02:04]} 13. a3 {[%emt 0:08:58]} Nb6 {[%emt 0:04:07]} 14. Nf3 {[%emt 0:03:25]} a6 {[%emt 0:10:51]} 15. Nd2 {[%emt 0:10:02]} Rc8 {[%emt 0:06:32]} 16. Rf3 {[%emt 0:06:11]} Bf5 {[%emt 0:09:23]} 17. h3 {[%emt 0:03:46]} Na5 {[%emt 0:07:02]} 18. Nf1 {[%emt 0:02:26]} Bg6 {[%emt 0:04:13]} 19. Ng3 {[%emt 0:06:01]} Nbc4 {[%emt 0:05:24]} 20. Bc1 {[%emt 0:02:55]} Nc6 {[%emt 0:02:57]} 21. Kh1 {[%emt 0:05:24]} Qb6 {[%emt 0:03:56]} 22. Bxc4 {[%emt 0:01:42]} dxc4 {[%emt 0:00:19]} 23. d5 {[%emt 0:00:46]} exd5 {[%emt 0:02:21]} 24. f5 {[%emt 0:00:32]} Bh7 {[%emt 0:04:16]} 25. f6 {[%emt 0:00:30]} gxf6 {[%emt 0:04:32]} 26. exf6 {[%emt 0:00:26]} Bd6 {[%emt 0:00:20]} 27. Re3+ {[%emt 0:03:43]} Kd7 {[%emt 0:04:08]} 28. Qxh5 {[%emt 0:07:22]} Bg6 {[%emt 0:00:30]} 29. Qg4+ {[%emt 0:00:13]} Kd8 {[%emt 0:00:08]} 30. Nf5 {[%emt 0:00:23]} Ne5 {[%emt 0:02:53]} 31. Rxe5 {[%emt 0:01:17]} Bxe5 {[%emt 0:00:13]} 32. Ne7 {[%emt 0:00:40]} Rc6 {[%emt 0:02:36]} 33. Ncxd5 {[%emt 0:03:31]} Qd4 {[%emt 0:00:01]} 34. Bf4 {[%emt 0:01:29]} Bxf4 {[%emt 0:01:32]} 35. Nxf4 {[%emt 0:01:17]} Qxf6 {[%emt 0:00:26]} 36. Rd1+ {[%emt 0:05:14]} Rd6 {[%emt 0:00:47]} 37. Qc8+ {[%emt 0:00:58]} Kxe7 {[%emt 0:00:13]} 38. Qc7+ {[%emt 0:00:05]} Kf8 {[%emt 0:01:22]} 39. Rxd6 {[%emt 0:00:58]} Qxb2 {[%emt 0:00:45]} 40. Nxg6+ {[%emt 0:00:00]} Kg7 {[%emt 0:00:00]} 41. Nxh8 Qa1+ 42. Kh2 Qe5+ 43. Kg1 Qe1+ {Ng6} 1/2-1/2

[Event "XX Sant Marti Open 2018"]
[Site "Sant Marti"]
[Date "2018.07.17"]
[Round "5"]
[White "Ruiz Castillo, Joshua Daniel"]
[Black "Vatsal Singhania"]
[Result "1-0"]
[ECO "C11"]
[WhiteElo "2410"]
[BlackElo "2193"]
[Annotator "NA"]
[PlyCount "98"]
[EventDate "2018.07.13"]
[EventType "swiss"]
[EventCountry "ESP"]
[SourceTitle "playchess.com"]
[Source "ChessBase"]
[SourceQuality "1"]
[TimeControl "5400+30"]

1. e4 {[%emt 0:00:00]} e6 {[%emt 0:00:00]} 2. d4 {[%emt 0:00:00]} d5 {[%emt 0:00:00]} 3. Nc3 {[%emt 0:00:00]} Nf6 {[%emt 0:00:00]} 4. e5 {[%emt 0:00:00]} Nfd7 {[%emt 0:00:00]} 5. f4 {[%emt 0:00:00]} c5 {[%emt 0:00:00]} 6. Nf3 {[%emt 0:00:00]} Nc6 {[%emt 0:00:11]} 7. Be3 {[%emt 0:00:01]} a6 {[%emt 0:00:06]} 8. Qd2 {[%emt 0:00:09]} cxd4 {[%emt 0:01:44]} 9. Nxd4 {[%emt 0:00:06]} Nxd4 {[%emt 0:00:04]} 10. Bxd4 {[%emt 0:00:03]} Bc5 {[%emt 0:00:06]} 11. O-O-O {[%emt 0:03:01]} O-O {[%emt 0:00:47]} 12. Ne2 {[%emt 0:00:54]} Qc7 {[%emt 0:03:53]} 13. Kb1 {[%emt 0:00:17]} b5 {[%emt 0:02:02]} 14. h4 {[%emt 0:00:09]} a5 {[%emt 0:02:58]} 15. Bxc5 {[%emt 0:03:30]} Nxc5 {[%emt 0:06:25]} 16. Nd4 {[%emt 0:00:04]} Ba6 {[%emt 0:04:10]} 17. Qe3 {[%emt 0:02:36]} b4 {[%emt 0:08:40]} 18. Bd3 {[%emt 0:00:48]} b3 {[%emt 0:30:43]} 19. Nxb3 {[%emt 0:11:02]} Bxd3 {[%emt 0:01:49]} 20. Qxc5 {[%emt 0:02:05]} Qxc5 {[%emt 0:00:06]} 21. Nxc5 {[%emt 0:00:03]} Bxc2+ {[%emt 0:00:06]} 22. Kxc2 {[%emt 0:00:03]} Rfc8 {[%emt 0:00:04]} 23. Kb1 {[%emt 0:04:52]} Rxc5 {[%emt 0:00:23]} 24. Rc1 {[%emt 0:00:01]} Rb5 {[%emt 0:00:10]} 25. h5 {[%emt 0:00:06]} Rab8 {[%emt 0:00:55]} 26. Rc2 {[%emt 0:00:04]} h6 {[%emt 0:00:13]} 27. g3 {[%emt 0:00:36]} Kh7 {[%emt 0:02:28]} 28. Ka1 {[%emt 0:00:20]} a4 {[%emt 0:02:29]} 29. Rd1 {[%emt 0:04:48]} R8b7 {[%emt 0:02:29]} 30. Rd4 {[%emt 0:00:34]} a3 {[%emt 0:00:59]} 31. b3 {[%emt 0:00:01]} Rb4 {[%emt 0:00:05]} 32. Rcd2 {[%emt 0:02:03]} g6 {[%emt 0:07:25]} 33. g4 {[%emt 0:00:05]} gxh5 {[%emt 0:01:55]} 34. gxh5 {[%emt 0:00:01]} Rb8 {[%emt 0:00:07]} 35. Kb1 {[%emt 0:00:08]} Rc4 {[%emt 0:08:51]} 36. R2d3 {[%emt 0:02:23]} Rxd4 {[%emt 0:10:13]} 37. Rxd4 {[%emt 0:00:03]} Rg8 {[%emt 0:00:36]} 38. Kc2 {[%emt 0:02:14]} Rg2+ {[%emt 0:00:27]} 39. Rd2 {[%emt 0:00:05]} Rg4 {[%emt 0:00:12]} 40. Rf2 {[%emt 0:01:15]} Rh4 {[%emt 0:04:27]} 41. b4 {[%emt 0:00:05]} Rxh5 {[%emt 0:00:07]} 42. Kb3 {[%emt 0:03:18]} Rh1 {[%emt 0:00:28]} 43. Kxa3 {[%emt 0:00:15]} h5 {[%emt 0:00:08]} 44. Rb2 {[%emt 0:00:11]} Rc1 {[%emt 0:00:53]} 45. b5 {[%emt 0:00:05]} Rc8 {[%emt 0:00:12]} 46. b6 {[%emt 0:00:07]} d4 {[%emt 0:00:32]} 47. Kb4 {[%emt 0:00:34]} d3 {[%emt 0:02:08]} 48. a4 {[%emt 0:02:44]} h4 {[%emt 0:00:28]} 49. Rd2 {[%emt 0:00:14]} Kg6 {[%emt 0:00:24]} 1-0

[Event "XX Sant Marti Open 2018"]
[Site "Sant Marti"]
[Date "2018.07.18"]
[Round "6"]
[White "Krysa, Leandro"]
[Black "Mitrabha, Guha"]
[Result "0-1"]
[ECO "A50"]
[WhiteElo "2533"]
[BlackElo "2299"]
[Annotator "ChessBase"]
[PlyCount "42"]
[EventDate "2018.07.13"]
[EventType "swiss"]
[EventCountry "ESP"]
[SourceTitle "playchess.com"]
[Source "ChessBase"]
[SourceQuality "1"]
[TimeControl "5400+30"]

1. d4 {[%emt 1:29:56]} Nf6 {[%emt 1:02:16]} 2. c4 {[%emt 0:00:30]} Nc6 {[%emt 0:00:30]} 3. Nf3 {[%emt 0:00:30]} e6 {[%emt 0:00:30]} 4. g3 {[%emt 0:00:30]} Bb4+ {[%emt 0:00:30]} 5. Bd2 {[%emt 0:00:30]} Qe7 {[%emt 0:00:30]} 6. e3 {[%emt 0:00:30]} Ne4 {[%emt 0:00:30]} 7. Bg2 {[%emt 0:00:30]} Nxd2 {[%emt 0:00:30]} 8. Nbxd2 {[%emt 0:00:30]} Bxd2+ {[%emt 0:00:30]} 9. Qxd2 {[%emt 0:00:30]} Qb4 {[%emt 0:00:30]} 10. Qxb4 {[%emt 0:00:30]} Nxb4 {[%emt 0:00:30]} 11. Kd2 {[%emt 0:00:30]} a5 {[%emt 0:00:30]} 12. Kc3 {[%emt 0:00:30]} d6 {[%emt 0:00:30]} 13. Nd2 {[%emt 0:00:30]} Nc6 {[%emt 0:00:30]} 14. b3 {[%emt 0:00:30]} Bd7 {[%emt 0:00:30]} 15. a3 {[%emt 0:00:30]} Ke7 {[%emt 0:00:30]} 16. b4 {[%emt 0:00:30]} Ra7 {[%emt 0:00:30]} 17. b5 {[%emt 0:00:30]} Nd8 {[%emt 0:00:30]} 18. Rab1 {[%emt 0:00:30]} b6 {[%emt 0:00:30]} 19. c5 {[%emt 0:00:30]} dxc5 {[%emt 0:00:30]} 20. dxc5 {[%emt 0:00:30]} bxc5 {[%emt 0:00:30]} 21. a4 {[%emt 0:00:30]} h6 {[%emt 0:00:30]} 0-1

[Event "XX Sant Marti Open 2018"]
[Site "Sant Marti"]
[Date "2018.07.20"]
[Round "8"]
[White "Cori Quispe, Kevin Joel"]
[Black "Vidarte Morales, Arturo"]
[Result "1-0"]
[ECO "B67"]
[WhiteElo "2487"]
[BlackElo "2381"]
[Annotator "ChessBase"]
[PlyCount "95"]
[EventDate "2018.07.13"]
[EventType "swiss"]
[EventCountry "ESP"]
[SourceTitle "playchess.com"]
[Source "ChessBase"]
[SourceQuality "1"]
[TimeControl "5400+30"]

1. e4 {[%emt 0:00:00]} c5 {[%emt 0:00:00]} 2. Nf3 {[%emt 0:00:00]} d6 {[%emt 0:00:00]} 3. d4 {[%emt 0:00:10]} cxd4 {[%emt 0:00:00]} 4. Nxd4 {[%emt 0:00:09]} Nf6 {[%emt 0:00:00]} 5. Nc3 {[%emt 0:00:08]} Nc6 {[%emt 0:00:00]} 6. Bg5 {[%emt 0:00:15]} e6 {[%emt 0:00:00]} 7. Qd2 {[%emt 0:00:35]} a6 {[%emt 0:00:01]} 8. O-O-O {[%emt 0:00:28]} Bd7 {[%emt 0:00:13]} 9. f3 {[%emt 0:01:18]} Rc8 {[%emt 0:00:34]} 10. Nxc6 {[%emt 0:00:44]} Bxc6 {[%emt 0:00:05]} 11. Kb1 {[%emt 0:00:18]} h6 {[%emt 0:00:39]} 12. Be3 {[%emt 0:00:48]} h5 {[%emt 0:00:37]} 13. h4 {[%emt 0:00:52]} b5 {[%emt 0:00:08]} 14. Bg5 {[%emt 0:00:51]} Be7 {[%emt 0:00:36]} 15. Bd3 {[%emt 0:00:45]} Qa5 {[%emt 0:02:56]} 16. Rhe1 {[%emt 0:07:49]} Bb7 {[%emt 0:04:58]} 17. g3 {[%emt 0:06:58]} e5 {[%emt 0:08:11]} 18. Bf1 {[%emt 0:01:06]} Rxc3 {[%emt 0:02:05]} 19. Qxc3 {[%emt 0:00:13]} Qxc3 {[%emt 0:00:05]} 20. bxc3 {[%emt 0:00:04]} Nd7 {[%emt 0:00:32]} 21. c4 {[%emt 0:00:49]} b4 {[%emt 0:00:14]} 22. Bd2 {[%emt 0:00:26]} a5 {[%emt 0:00:21]} 23. c3 {[%emt 0:00:31]} bxc3 {[%emt 0:00:37]} 24. Bxc3 {[%emt 0:00:06]} a4 {[%emt 0:00:20]} 25. c5 {[%emt 0:06:32]} Nxc5 {[%emt 0:01:39]} 26. Bb5+ {[%emt 0:00:14]} Kf8 {[%emt 0:00:12]} 27. Bb4 {[%emt 0:00:24]} Ne6 {[%emt 0:01:49]} 28. Bxa4 {[%emt 0:02:54]} Nd4 {[%emt 0:01:05]} 29. Rd3 {[%emt 0:05:00]} Ba6 {[%emt 0:02:36]} 30. Ra3 {[%emt 0:02:01]} g6 {[%emt 0:00:33]} 31. Bd1 {[%emt 0:01:13]} Bc8 {[%emt 0:03:43]} 32. Ra8 {[%emt 0:01:56]} Kg7 {[%emt 0:00:09]} 33. Re3 {[%emt 0:00:18]} Nc6 {[%emt 0:03:44]} 34. Rc3 {[%emt 0:00:55]} Bb7 {[%emt 0:06:11]} 35. Rxh8 {[%emt 0:00:12]} Kxh8 {[%emt 0:00:05]} 36. a3 {[%emt 0:01:05]} f5 {[%emt 0:00:50]} 37. exf5 {[%emt 0:01:28]} gxf5 {[%emt 0:00:25]} 38. Bc2 {[%emt 0:00:14]} e4 {[%emt 0:01:23]} 39. fxe4 {[%emt 0:00:25]} Bf6 {[%emt 0:00:05]} 40. Rc4 {[%emt 0:02:25]} Ne5 {[%emt 0:01:15]} 41. Rc7 {[%emt 0:00:44]} Bxe4 {[%emt 0:00:09]} 42. Bxd6 {[%emt 0:01:10]} Nf3 {[%emt 0:00:29]} 43. Bf4 {[%emt 0:06:05]} Nd4 {[%emt 0:00:33]} 44. Bxe4 {[%emt 0:00:17]} fxe4 {[%emt 0:00:03]} 45. a4 {[%emt 0:00:22]} Ne2 {[%emt 0:00:22]} 46. a5 {[%emt 0:01:48]} Nxf4 {[%emt 0:00:17]} 47. gxf4 {[%emt 0:00:05]} e3 {[%emt 0:00:35]} 48. Kc2 {[%emt 0:00:18]} 1-0

[Event "XX Sant Marti Open 2018"]
[Site "Sant Marti"]
[Date "2018.07.20"]
[Round "8"]
[White "Aguero Jimenez, Luis Lazaro"]
[Black "Cuartas, Jaime Alexander"]
[Result "1-0"]
[ECO "C78"]
[WhiteElo "2473"]
[BlackElo "2508"]
[Annotator "ChessBase"]
[PlyCount "81"]
[EventDate "2018.07.13"]
[EventType "swiss"]
[EventCountry "ESP"]
[SourceTitle "playchess.com"]
[Source "ChessBase"]
[SourceQuality "1"]
[TimeControl "5400+30"]

1. e4 e5 {[%emt 0:00:19]} 2. Nf3 {[%emt 0:00:00]} Nc6 {[%emt 0:00:11]} 3. Bb5 {[%emt 0:00:00]} a6 {[%emt 0:00:06]} 4. Ba4 {[%emt 0:00:00]} Nf6 {[%emt 0:00:05]} 5. O-O {[%emt 0:00:01]} b5 {[%emt 0:00:05]} 6. Bb3 {[%emt 0:00:01]} Bb7 {[%emt 0:00:07]} 7. d3 {[%emt 0:00:11]} Bc5 {[%emt 0:00:18]} 8. a4 {[%emt 0:01:21]} O-O {[%emt 0:00:23]} 9. Nc3 {[%emt 0:00:19]} b4 {[%emt 0:00:46]} 10. Nd5 {[%emt 0:00:19]} Nxd5 {[%emt 0:07:29]} 11. Bxd5 {[%emt 0:00:06]} d6 {[%emt 0:00:08]} 12. a5 {[%emt 0:02:49]} Rb8 {[%emt 0:01:40]} 13. c3 {[%emt 0:02:20]} Ne7 {[%emt 0:00:17]} 14. Bc4 {[%emt 0:03:25]} bxc3 {[%emt 0:04:09]} 15. bxc3 {[%emt 0:00:08]} Ba7 {[%emt 0:00:11]} 16. Be3 {[%emt 0:02:49]} Bxe3 {[%emt 0:04:50]} 17. fxe3 {[%emt 0:00:53]} d5 {[%emt 0:00:07]} 18. exd5 {[%emt 0:00:30]} Nxd5 {[%emt 0:00:06]} 19. Qd2 {[%emt 0:55:04]} Qd6 {[%emt 0:02:18]} 20. e4 {[%emt 0:01:18]} Nf6 {[%emt 0:01:20]} 21. Qa2 {[%emt 0:01:27]} Rbe8 {[%emt 0:03:18]} 22. Rab1 {[%emt 0:06:19]} Bc8 {[%emt 0:01:06]} 23. Ng5 {[%emt 0:00:56]} Be6 {[%emt 0:03:54]} 24. Nxe6 {[%emt 0:00:13]} fxe6 {[%emt 0:00:04]} 25. Kh1 {[%emt 0:03:13]} Kh8 {[%emt 0:01:15]} 26. Qe2 {[%emt 0:00:42]} Qc5 {[%emt 0:02:30]} 27. Ra1 {[%emt 0:00:50]} Ra8 {[%emt 0:00:43]} 28. Rf3 {[%emt 0:06:42]} h6 {[%emt 0:07:41]} 29. Qe3 {[%emt 0:04:13]} Qe7 {[%emt 0:03:42]} 30. Raf1 {[%emt 0:00:35]} Kh7 {[%emt 0:02:17]} 31. Qe1 {[%emt 0:03:12]} Qd6 {[%emt 0:04:19]} 32. Qh4 {[%emt 0:01:17]} Nd7 {[%emt 0:01:52]} 33. Qg4 {[%emt 0:00:41]} Rxf3 {[%emt 0:02:31]} 34. Rxf3 {[%emt 0:01:11]} Rf8 {[%emt 0:02:58]} 35. Qxe6 {[%emt 0:02:20]} Qa3 {[%emt 0:04:36]} 36. h4 {[%emt 0:00:31]} Qc1+ {[%emt 0:00:26]} 37. Kh2 {[%emt 0:00:03]} Nf6 {[%emt 0:00:46]} 38. Rxf6 {[%emt 0:01:32]} Rxf6 {[%emt 0:00:12]} 39. Qg8+ {[%emt 0:00:02]} Kg6 {[%emt 0:00:15]} 40. Qe8+ {[%emt 0:00:05]} Kh7 {[%emt 0:00:12]} 41. Bg8+ {[%emt 0:00:06]} 1-0